Cogmind - Beta 14 @@@ ROGUE MODE // 2024.08.22 @ 14:46:07 Player: Gabri Result: Destroyed by D9-C9T(R) with Subdweller Machine Gun Performance ------------- Evolutions (0) 0 Regions Visited (2) 400 Robots Destroyed (18) 90 Value Destroyed (419) 419 Prototype IDs (0) 0 Alien Tech Used (0) 0 Bonus (0) 0 TOTAL SCORE: 909 Bonus ------- None Cogmind --------- Core Integrity 0/250 Matter 300/300 Energy 98/100 System Corruption 0% Temperature Cool (0) Movement Core (50) Location -10/Subcaves Parts ------- > --- POWER (1) -------- (None) > --- PROPULSION (2) --- (None) > --- UTILITY (2) ------ (None) > --- WEAPON (2) ------- (None) > --- INVENTORY (5) ---- Large Storage Unit Seismic Detector Targeting Computer Tractor Beam Beam Cannon Peak State ------------ > --- POWER ------------ Light Ion Engine > --- PROPULSION ------- Light Treads Compact Wheel > --- UTILITY ---------- Large Storage Unit Seismic Detector > --- WEAPON ----------- Subdweller Beam Cannon Subdweller Machine Gun > --- INVENTORY -------- Medium Storage Unit Large Storage Unit Seismic Detector Targeting Computer Tractor Beam Medium Laser Beam Cannon Assault Rifle Grenade Launcher Mining Laser [Rating: 10] Favorites ----------- Power Ion Engine Engine Ion Engine Propulsion Light Treads Treads Light Treads Wheel Compact Wheel Utility Large Storage Unit Device Seismic Detector Storage Large Storage Unit Weapon Assault Rifle Energy Gun Medium Laser Energy Cannon Subdweller Beam Cannon Ballistic Gun Assault Rifle Launcher Grenade Launcher Special Weapon Mining Laser Build | -11 -10 -10 ------- Run | Yrd Mat Sub Slots Evolved . | . . . Power . | . . . Propulsion . | . . . Utility . | . . . Weapon . | . . . Parts Attached 20 | 8 5 7 Power 2 | 1 . 1 Engine 2 | 1 . 1 Core . | . . . Reactor . | . . . Propulsion 3 | 2 . 1 Treads 2 | 2 . . Leg . | . . . Wheel 1 | . . 1 Hover . | . . . Flight . | . . . Utility 5 | 3 2 . Device 2 | 2 . . Storage 3 | 1 2 . Processor . | . . . Hackware . | . . . Protection . | . . . Artifact . | . . . Weapon 10 | 2 3 5 Energy Gun 2 | 1 1 . Energy Cannon 1 | . . 1 Ballistic Gun 3 | 1 1 1 Ballistic Cannon . | . . . Launcher 2 | . . 2 Special Weapon 2 | . 1 1 Impact Weapon . | . . . Slashing Weapon . | . . . Piercing Weapon . | . . . Special Melee Weapon . | . . . Unidentified Prototypes . | . . . Parts Lost 7 | . . 7 Power 2 | . . 2 Propulsion 3 | . . 3 Utility 1 | . . 1 Weapon 1 | . . 1 Highest Loss Streak 5 | . . 5 To Critical Strikes . | . . . Average Slot Usage (%) 67 | . 100 57 Engine 8 | . 14 7 Treads 13 | . 28 9 Wheel 3 | . . 4 Device 8 | . 14 7 Storage 13 | . 14 13 Energy Gun 4 | . 12 1 Energy Cannon 4 | . . 5 Ballistic Gun 7 | . 12 6 Peak Build Rating 10 | 7 8 10 Average Rating 5 | 5 7 5 On Entrance 5 | . 7 8 Naked Turns 42 | . . 42 Heaviest Build 36 | 15 30 36 Greatest Support 40 | 40 40 40 Greatest Overweight (x) 10 | . . 10 Average Overweight (x) 1 | . . 2 Largest Inventory Capacity 15 | 8 15 15 Average Capacity 13 | 7 10 14 Most Carried 12 | 3 10 12 Average Carried 9 | 1 7 11 Final Capacity 15 | 8 15 5 Final Carried 10 | 3 10 5 Class Distribution -------------------- 100% | Mutant Dominant Class ---------------- Mutant | -10/Materials Mutant | -10/Subcaves Resources | -11 -10 -10 ----------- Run | Yrd Mat Sub Matter Collected 618 | 291 114 213 Remotely 10 | 10 . . Salvage Created 465 | 77 236 152 Parts 38 | 5 18 15 Haulers Intercepted . | . . . Recyclers Shooed . | . . . Parts Field Recycled . | . . . Retrieved Matter . | . . . Parts Self-Destructed 21 | . . 21 Prevented . | . . . Kills | -11 -10 -10 ------- Run | Yrd Mat Sub Combat Hostiles Destroyed 16 | . 9 7 Guns 8 | . 8 . Cannons 2 | . 1 1 AOE 6 | . . 6 Classes Destroyed 5 | 2 2 1 Tunneler 1 | 1 . . Recycler 1 | 1 . . Swarmer 7 | . 5 2 Grunt 4 | . 4 . Subdweller 5 | . . 5 Best Kill Streak 3 | 1 3 2 Combat Bots Only 3 | . 3 2 Max Kills in Single Turn 1 | 1 1 1 Gunslinging . | . . . Exploded 1 | . . 1 Melee . | . . . Uniques/NPCs Destroyed . | . . . Combat | -11 -10 -10 -------- Run | Yrd Mat Sub Hostile Shots Fired 127 | . 54 73 Missed 41 | . 13 28 Damage Taken 984 | . 385 599 Core 269 | . 39 230 Absorbed by Shields . | . . . Core Remaining (%) 100 | 100 . . Volleys Fired 58 | 7 26 25 Largest 2 | 2 2 2 Hottest 120 | 70 120 100 Shots Fired 96 | 13 50 33 Gun 68 | 13 44 11 Cannon 8 | . . 8 Launcher 13 | . . 13 Special 7 | . 6 1 Kinetic 42 | 7 24 11 Thermal 41 | 6 26 9 Explosive 13 | . . 13 Electromagnetic . | . . . Robot Hit Streak 25 | 6 10 25 Robot Miss Streak 3 | 1 3 1 Penetration Max . | . . . Secondary Targets 1 | . 1 . Max Gunslinging Chain 1 | . 1 . Shots Hit Robots 67 | 10 31 26 Core Hits 26 | 3 12 11 Critical Kills . | . . . Critical Parts Destroyed . | . . . Critical Strikes 1 | . 1 . Burn 1 | . 1 . Melee Attacks . | . . . Impact . | . . . Slashing . | . . . Piercing . | . . . Sneak Attacks . | . . . Combat Hostiles . | . . . Follow-up Attacks . | . . . Damage Inflicted 1455 | 116 414 925 Guns 599 | 116 390 93 Cannons 220 | . . 220 Explosions 612 | . . 612 Melee . | . . . Ramming . | . . . Kinetic 361 | 66 202 93 Thermal 482 | 50 212 220 Explosive 612 | . . 612 Electromagnetic . | . . . Impact . | . . . Slashing . | . . . Piercing . | . . . Highest Corruption . | . . . Average Corruption . | . . . Corruption Purged . | . . . Corruption Blocked . | . . . Overload Shots . | . . . Overflow Damage 18 | . . 18 Projectiles . | . . . Explosions 18 | . . 18 Melee . | . . . Knockbacks . | . . . Impact . | . . . Kinetic . | . . . Secondary . | . . . Self-Inflicted Damage 68 | . . 68 Shots 3 | . . 3 Rammed 1 | . 1 . Targets Rammed 1 | . 1 . Kicked . | . . . Crushed . | . . . Highest Temperature 116 | 36 116 5 Average Temperature 35 | 16 39 5 Received Heat Transfer 234 | . 126 108 Siege Activations . | . . . Robots Corrupted . | . . . Combat Hostiles . | . . . Parts Fried . | . . . Impact Corruptions . | . . . Robots Melted . | . . . Combat Hostiles . | . . . Parts Melted . | . . . Heat Transferred 1123 | 148 679 296 Parts Sabotaged . | . . . Parts Stolen . | . . . Parts Stripped . | . . . Power Chain Reactions . | . . . Alert | -11 -10 -10 ------- Run | Yrd Mat Sub Peak Influence 227 | 10 227 . Initial 6 | . 6 . Average 64 | 2 79 . Maximum Alert Level 1 | . 1 . Low Security (%) 92 | 100 90 . Level 1 7 | . 9 . Level 2 . | . . . Level 3 . | . . . Level 4 . | . . . Level 5 . | . . . High Security . | . . . Max Security . | . . . Squads Dispatched 1 | . 1 . Investigation 1 | . 1 . Extermination . | . . . Reinforcement . | . . . Assault . | . . . Garrison . | . . . Intercept . | . . . Searches Triggered . | . . . Construction Impeded . | . . . Haulers Reinforced . | . . . Active Scanning Responses . | . . . Cargo Convoy Interrupts . | . . . Stealth | -11 -10 -10 --------- Run | Yrd Mat Sub Distress Signals 3 | . 3 . Communications Jammed . | . . . Distress Signals . | . . . Times Spotted 34 | . 21 13 Peak Tracking Total 8 | . 8 5 Tactical Retreats 4 | . 2 2 Traps | -11 -10 -10 ------- Run | Yrd Mat Sub Traps Triggered 1 | . 1 . Indirectly . | . . . Trap Hack Attempts . | . . . Triggered . | . . . Disarmed . | . . . Reprogrammed . | . . . Reused . | . . . Traps Extracted . | . . . Installed . | . . . Triggered 1 | . . 1 Machines | -11 -10 -10 ---------- Run | Yrd Mat Sub Machines Disabled . | . . . Max in Single Turn . | . . . Machines Repaired . | . . . Machines Dismantled . | . . . Machines Sabotaged . | . . . Overloaded Fab Kills . | . . . Hacking | -11 -10 -10 --------- Run | Yrd Mat Sub Machines Accessed 3 | . 2 1 Terminals 2 | . 2 . Fabricators . | . . . Repair Stations . | . . . Recycling Units . | . . . Scanalyzers . | . . . Garrison Access . | . . . Total Hacks 9 | . 5 4 Successful 6 | . 2 4 Failed 3 | . 3 . Catastrophic . | . . . Database Lockouts . | . . . Manual 5 | . 5 . Terminals 5 | . 5 . Fabricators . | . . . Repair Stations . | . . . Recycling Units . | . . . Scanalyzers . | . . . Garrison Access . | . . . Terminal Hacks 4 | . . 4 Record 4 | . . 4 Fabricator Hacks . | . . . Repair Station Hacks . | . . . Recycling Unit Hacks . | . . . Scanalyzer . | . . . Garrison Access Hacks . | . . . Unauthorized Hacks 2 | . 2 . Terminals 2 | . 2 . Botnet 2 | . 2 . Fabricators . | . . . Repair Stations . | . . . Recycling Units . | . . . Scanalyzers . | . . . Garrison Access . | . . . Data Cores Recovered . | . . . Used . | . . . Hacking Detections 2 | . 2 . Full Trace Events . | . . . Feedback Events . | . . . Feedback Blocked . | . . . Robot Schematics Acquired . | . . . Robots Built . | . . . Authchips . | . . . Time . | . . . Total Robot Build Rating . | . . . Part Schematics Acquired . | . . . Parts Built . | . . . Authchips . | . . . Time . | . . . Total Part Build Rating . | . . . Parts Repaired . | . . . Time . | . . . Parts Recycled . | . . . Recycled Matter . | . . . Retrieved Matter . | . . . Retrieved Components . | . . . Parts Scanalyzed . | . . . Part Schematics Acquired . | . . . Parts Damaged . | . . . Bothacking | -11 -10 -10 ------------ Run | Yrd Mat Sub Used RIF Installer . | . . . Robots Hacked . | . . . Non-combat . | . . . Combat . | . . . Robot Hacks Applied . | . . . Relay Couplers Released . | . . . Fabnet Peak Effective % . | . . . Robots Rewired . | . . . Allies Hacked . | . . . Hacks Repelled . | . . . Allies | -11 -10 -10 -------- Run | Yrd Mat Sub Total Allies . | . . . Largest Group . | . . . Highest-Rated Group . | . . . Highest-Rated Ally . | . . . Total Orders . | . . . Ally Attacks . | . . . Total Damage . | . . . Kills . | . . . Allies Corrupted . | . . . Allies Melted . | . . . Intel | -11 -10 -10 ------- Run | Yrd Mat Sub Robot Analysis Total . | . . . Derelict Logs Recovered 1 | . . 1 Drone Launches . | . . . Drone Recoveries . | . . . Exploration | -11 -10 -10 ------------- Run | Yrd Mat Sub Turns Passed 2819 | 150 616 2053 Spaces Moved 1434 | 75 302 1057 Core 352 | 3 . 349 Treads 561 | 72 302 187 Legs . | . . . Wheels 521 | . . 521 Hover . | . . . Flight . | . . . Fastest Speed 50 | 50 160 50 Average Speed 179 | 155 160 186 Slowest Speed 550 | 160 160 550 Overloaded Moves . | . . . Propulsion Burnouts . | . . . Robots Hopped . | . . . Cave-ins Triggered . | . . . Exploration Rate (%) 39 | 6 51 61 Regions Visited 2 Branch Regions 1 Pre-discovered Areas . | . . . Known Exits Taken . | . . . Unknown Exits Taken 2 | 1 1 . Scrap Searched . | . . . Spaces Dug 2 | . 2 . Terrain Destroyed 42 | . 3 39 Melee . | . . . Projectile 3 | . 3 . AOE 39 | . . 39 Terrain Rammed . | . . . Walls Destroyed . | . . . Machines Disabled . | . . . Actions | -11 -10 -10 --------- Run | Yrd Mat Sub Total 1564 | 92 371 1101 Wait 36 | . 31 5 Move 1432 | 74 301 1057 Hop . | . . . Pick Up 11 | 2 6 3 Fast Attach 9 | 8 . 1 Attach 2 | . . 2 Detach 3 | 1 . 2 Swap 9 | . 5 4 Drop 3 | . 1 2 Fire 58 | 7 26 25 Melee . | . . . Ram . | . . . Kick . | . . . Crush 1 | . 1 . Escape Stasis . | . . . Rewire . | . . . Trap . | . . . Miscellaneous . | . . . Route ------- -11/Scrapyard -10/Materials (discovered 3 exits: [*Mat] / [*Min] / *Sub) -10/Subcaves (discovered 2 exits: [*Mat x2]) History --------- Turn | Location | Event 19 | -11/Scrapyard | Discovered new exit (range 15) 151 | -11/Scrapyard | Entered Materials 258 | -10/Materials | Discovered new exit (range 13) 308 | -10/Materials | Build established: Mutant 503 | -10/Materials | Discovered new exit (range 16) 734 | -10/Materials | Discovered new exit (range 11) 767 | -10/Materials | Entered Subcaves 786 | -10/Subcaves | A swath of the cavern ceiling suddenly collapsed 1019 | -10/Subcaves | Discovered new exit (range 16) 1037 | -10/Subcaves | Shifting Twisted Machinery released Sub. Beam Cannon 1044 | -10/Subcaves | Shifting Twisted Machinery released Sub. Optics 1107 | -10/Subcaves | Learned Materials security intel 1126 | -10/Subcaves | Core integrity fell below 50% 1159 | -10/Subcaves | Shifting Twisted Machinery released Sub. Machine Gun 1169 | -10/Subcaves | Shifting Twisted Machinery released Mak. Power Source 1362 | -10/Subcaves | Visited Clippyterm 1366 | -10/Subcaves | Learned Factory emergency access door positions 1601 | -10/Subcaves | Discovered new exit (range 7) 1851 | -10/Subcaves | Lost 5 parts (1p2n1u1w) 2783 | -10/Subcaves | Core integrity fell below 20% 2820 | -10/Subcaves | Destroyed by D9-C9T(R) with Subdweller Machine Gun Last Messages --------------- 01820_ Lgt. Ion Engine destroyed. 01826_ Flight Unit fries itself beyond repair. 01847_ Subatomizers dissect the Sub. Monowheel. 01879_ The unstable cave ceiling collapses. 01879_ Acquired 8 matter. 01882_ Subatomizers dissect the Disposable Heat Sink. 01890_ The unstable cave ceiling collapses. 01890_ Disposable Heat Sink crushed. 01899_ The unstable cave ceiling collapses. 01908_ Subatomizers dissect the Sub. Optics. 01947_ The unstable cave ceiling collapses. 01956_ Acquired 15 matter. 02652_ Acquired 30 matter. 02752_ Subatomizers dissect the Sub. Monowheel. 02778_ ST-ZHZ(R): "WEHOME!" 02778_ Dropped Lrg. Storage Unit. 02779_ Dropped Med. Storage Unit. 02780_ Acquired Lrg. Storage Unit. Map ----- +----------------------------------------------------+ | ??????????????????????????????????????????###& ### | | ??????????????????????????????????????????# "" | | ??????????????????????????????????????????#" | | ??????????????????????????????????????????#" | | ?????????????????????????????########??#### "" | | ????????????????????????????## #### # | | ????????????????????????????# ## " | | ????????????????????????????# | | ????????????????????????????# & | | ???????????????????########## % % | | ?????????##????????# ## # ##" ### ##"##### | | ????????## ##??????# # #?# ####???# | | ????????# [#?????## """ ##?# #?????## | | ??????### [##????# " ####?? #?????# | | ??????# [ !###### ## ###???##""#?????## | | ??????# ]|* # ### ##?# #??????## | | ???# !! ###?## ## #???????# | | ??# =%&! ##????# ##??????# | | ??## # %^ # # ##?????# " #?????## | | ??# # # ### & #####??????## " ???## | | ??? ??##^ ### ##??###??# ""## #?## | | ??# # #????####?# #??# ####RR "##? """##?# | | ??#?##?????????## #?## ##??? "? ????# | | ???????????????# ### ##???????????## | | ??????????????## ## " #???????????## | | ?????????????## R "@ # #????????#### # | | ????????????## " ## #????????#" # | | ????????????# ## ## #? #???????## # | | ????????????# ##" ## ####???????## "" #" | | ????????????# ##""" ## ##?????????## ""#### | | ????????????# ###;"""" ### #??????????# """""## | | ???????????## ##?###"" ##? ????####??# """"" " | | ?????????### ##????#####?? ??###" "### """ | | ?????????# #???" ?????## ### " " ###""" | | ?????????# #?? ????# " ## ### #????? | | ?????????# ##?? #### """"## ## #????? | | ????????## ##???" & """"?# ## ##???? | | ????????# #??? [ % *"###"# # #???? | | ?????####" #???"" =%% "" %## # ####? | | ????## ##???? " #? | | ????# ##??????????# % """""" # | | ????# ##???????????## # """"""""" | | ????# #?????????????# ## ## # # | | ????#### #?????????????????## ### % ? | | ???????###?????????????????## ## # ## ?? | | ???????????????????????????# ### ## #???? | | ???????????????????????????# ##?### # #??? | | ??????????????????????????### #??# # ##??? | | ??????????????????????????# #??# #?? # # | | ??????????????????????????# ## #### ## | +----------------------------------------------------+ Best States ------------- Heat Dissipation 25 Energy Generation 10 Energy Capacity 250 Matter Stores 300 Matter Capacity 300 Sight Range 16 Terrain Scan Density 10 Evasion (%) 50 Recoil Reduction 2 Item Schematics ----------------- None Robot Schematics ------------------ None Fabricated ------------ Nothing Alien Tech Used ----------------- None Achievements -------------- None Challenges ------------ None Game ------ Seed BombGravmagNanovents Manual? 0 Play Time 00:20:52 Cumulative 19.9 hours Start 2024.08.22 @ 14:25:54 End 2024.08.22 @ 14:46:07 Sessions 1 Manual Loads 0 Difficulty Rogue Special Mode None Game No. 19 Rogue 19 Adventurer 0 Explorer 0 Win Type - Total 1 Types 1/0/0/0/0/0/0/0/0 Lore% 12 Gallery% 23 Achievement% 21 Wizard Run 0 Options --------- Layout 1 ASCII 0 Keyboard 1 Movement Numpad Keybinds 1 Fullscreen 1 Font 24/Smallcaps Map View 50x35 Zoom Use 0% Tactical HUD 1 Map Filters NONE Filters NONE Steam 1 RUN: 7e243baa-e5e7-4bad-8c4d-1f2b076fa94a